[Event "Titled Tuesday Blitz March 29 Late 2022"]
[White "Karttunen, Mika"]
[Black "Pakleza, Zbigniew"]
[WhiteFideId "502081"]
[BlackFideId "1119290"]
[WhiteElo "2343"]
[BlackElo "2467"]
[Result "0-1"]
[Round "07"]
[TimeControl "180+1"]
[Date "2022.03.29"]
[WhiteClock "0:00:03"]
[BlackClock "0:00:04"]

1. e4 {[%clk 0:03:00]}  d6 {[%clk 0:03:00]} 2. d4 {[%clk 0:03:00]}  Nf6 {[%clk 0:03:00]} 3. f3 {[%clk 0:03:00]}  Nbd7 {[%clk 0:02:58]} 4. Be3 {[%clk 0:02:59]}  e5 {[%clk 0:02:59]} 5. d5 {[%clk 0:02:59]}  Be7 {[%clk 0:02:59]} 6. c4 {[%clk 0:02:59]}  O-O {[%clk 0:03:00]} 7. Nc3 {[%clk 0:03:00]}  Ne8 {[%clk 0:02:59]} 8. g4 {[%clk 0:02:59]}  Bh4+ {[%clk 0:02:57]} 9. Kd2 {[%clk 0:02:53]}  g6 {[%clk 0:02:48]} 10. Bd3 {[%clk 0:02:49]}  Ng7 {[%clk 0:02:47]} 11. Nge2 {[%clk 0:02:46]}  Nc5 {[%clk 0:02:42]} 12. Bc2 {[%clk 0:02:40]}  a5 {[%clk 0:02:40]} 13. Qg1 {[%clk 0:02:38]}  b6 {[%clk 0:02:30]} 14. Rf1 {[%clk 0:02:32]}  Bd7 {[%clk 0:02:16]} 15. b3 {[%clk 0:02:26]}  Kh8 {[%clk 0:02:14]} 16. Kc1 {[%clk 0:02:13]}  f5 {[%clk 0:01:50]} 17. h3 {[%clk 0:01:59]}  Bg5 {[%clk 0:01:40]} 18. gxf5 {[%clk 0:01:39]}  Bxe3+ {[%clk 0:01:40]} 19. Qxe3 {[%clk 0:01:39]}  gxf5 {[%clk 0:01:41]} 20. h4 {[%clk 0:01:40]}  f4 {[%clk 0:01:38]} 21. Qf2 {[%clk 0:01:38]}  Nh5 {[%clk 0:01:34]} 22. Rfg1 {[%clk 0:01:31]}  Rg8 {[%clk 0:01:25]} 23. Rxg8+ {[%clk 0:01:30]}  Qxg8 {[%clk 0:01:26]} 24. Rg1 {[%clk 0:01:31]}  Qf7 {[%clk 0:01:26]} 25. Rg5 {[%clk 0:01:32]}  Rg8 {[%clk 0:01:25]} 26. Qg2 {[%clk 0:01:27]}  h6 {[%clk 0:01:14]} 27. Rxg8+ {[%clk 0:01:22]}  Qxg8 {[%clk 0:01:15]} 28. Qxg8+ {[%clk 0:01:09]}  Kxg8 {[%clk 0:01:16]} 29. Kd2 {[%clk 0:01:09]}  Kg7 {[%clk 0:01:15]} 30. Ke1 {[%clk 0:01:05]}  Kg6 {[%clk 0:01:09]} 31. a3 {[%clk 0:01:01]}  Ng7 {[%clk 0:01:03]} 32. b4 {[%clk 0:01:01]}  axb4 {[%clk 0:01:02]} 33. axb4 {[%clk 0:01:01]}  Na6 {[%clk 0:01:00]} 34. Na2 {[%clk 0:00:51]}  Kh5 {[%clk 0:00:59]} 35. Kf2 {[%clk 0:00:44]}  Kxh4 {[%clk 0:00:59]} 36. Bd3 {[%clk 0:00:45]}  Nb8 {[%clk 0:00:47]} 37. Nec3 {[%clk 0:00:36]}  Kg5 {[%clk 0:00:47]} 38. Nc1 {[%clk 0:00:29]}  Kf6 {[%clk 0:00:27]} 39. Nb3 {[%clk 0:00:28]}  Ke7 {[%clk 0:00:27]} 40. c5 {[%clk 0:00:28]}  bxc5 {[%clk 0:00:21]} 41. bxc5 {[%clk 0:00:28]}  c6 {[%clk 0:00:19]} 42. Bc4 {[%clk 0:00:22]}  Ne8 {[%clk 0:00:18]} 43. dxc6 {[%clk 0:00:21]}  Bxc6 {[%clk 0:00:19]} 44. Bd5 {[%clk 0:00:13]}  Nf6 {[%clk 0:00:18]} 45. Bxc6 {[%clk 0:00:11]}  Nxc6 {[%clk 0:00:19]} 46. cxd6+ {[%clk 0:00:11]}  Kxd6 {[%clk 0:00:19]} 47. Nb5+ {[%clk 0:00:11]}  Ke6 {[%clk 0:00:16]} 48. Nc5+ {[%clk 0:00:12]}  Kf7 {[%clk 0:00:17]} 49. Nd6+ {[%clk 0:00:12]}  Kg6 {[%clk 0:00:16]} 50. Nf5 {[%clk 0:00:12]}  h5 {[%clk 0:00:08]} 51. Nd3 {[%clk 0:00:12]}  Nd7 {[%clk 0:00:07]} 52. Kg2 {[%clk 0:00:10]}  Kg5 {[%clk 0:00:07]} 53. Nd6 {[%clk 0:00:09]}  Nd4 {[%clk 0:00:06]} 54. Nf7+ {[%clk 0:00:09]}  Kf6 {[%clk 0:00:07]} 55. Nd6 {[%clk 0:00:09]}  Nb3 {[%clk 0:00:06]} 56. Nc4 {[%clk 0:00:09]}  Nbc5 {[%clk 0:00:05]} 57. Nb4 {[%clk 0:00:08]}  Ke6 {[%clk 0:00:05]} 58. Nd5 {[%clk 0:00:08]}  Nf6 {[%clk 0:00:05]} 59. Nc7+ {[%clk 0:00:08]}  Kd7 {[%clk 0:00:05]} 60. Nb5 {[%clk 0:00:08]}  Nd3 {[%clk 0:00:06]} 61. Nc3 {[%clk 0:00:07]}  Ke6 {[%clk 0:00:05]} 62. Nb5 {[%clk 0:00:08]}  h4 {[%clk 0:00:02]} 63. Nc7+ {[%clk 0:00:08]}  Kd7 {[%clk 0:00:03]} 64. Nb5 {[%clk 0:00:07]}  Kc6 {[%clk 0:00:04]} 65. Nba3 {[%clk 0:00:06]}  Kc5 {[%clk 0:00:04]} 66. Na5 {[%clk 0:00:06]}  Kd4 {[%clk 0:00:03]} 67. Nc6+ {[%clk 0:00:06]}  Ke3 {[%clk 0:00:03]} 68. Nc4+ {[%clk 0:00:07]}  Ke2 {[%clk 0:00:04]} 69. N6xe5 {[%clk 0:00:07]}  Ne1+ {[%clk 0:00:03]} 70. Kh3 {[%clk 0:00:07]}  Nxf3 {[%clk 0:00:04]} 71. Nxf3 {[%clk 0:00:05]}  Kxf3 {[%clk 0:00:05]} 72. Kxh4 {[%clk 0:00:06]}  Kxe4 {[%clk 0:00:04]} 73. Kh3 {[%clk 0:00:06]}  Nd5 {[%clk 0:00:03]} 74. Kg2 {[%clk 0:00:06]}  Ne3+ {[%clk 0:00:02]} 75. Nxe3 {[%clk 0:00:05]}  Kxe3 {[%clk 0:00:03]} 76. Kg1 {[%clk 0:00:03]}  Ke2 {[%clk 0:00:04]} 0-1


[Site "https://www.chess.com"]

[Event "Titled Tuesday Blitz March 29 Late 2022"]
[White "Kozina, Anastasia"]
[Black "Bogumil, Tatiana"]
[WhiteFideId "24174017"]
[BlackFideId "4110579"]
[WhiteElo "1993"]
[BlackElo "1761"]
[Result "1-0"]
[Round "07"]
[TimeControl "180+1"]
[Date "2022.03.30"]
[WhiteClock "0:01:50"]
[BlackClock "0:00:02"]

1. a3 {[%clk 0:03:00]}  Nf6 {[%clk 0:01:31]} 2. b4 {[%clk 0:02:58]}  g6 {[%clk 0:01:30]} 3. Bb2 {[%clk 0:02:59]}  Bg7 {[%clk 0:01:31]} 4. Nf3 {[%clk 0:02:59]}  b6 {[%clk 0:01:26]} 5. g3 {[%clk 0:02:59]}  Bb7 {[%clk 0:01:26]} 6. Bg2 {[%clk 0:02:59]}  O-O {[%clk 0:01:27]} 7. O-O {[%clk 0:02:59]}  c5 {[%clk 0:01:21]} 8. c4 {[%clk 0:02:47]}  a5 {[%clk 0:01:10]} 9. bxc5 {[%clk 0:02:44]}  bxc5 {[%clk 0:01:10]} 10. Nc3 {[%clk 0:02:44]}  d6 {[%clk 0:00:54]} 11. Rb1 {[%clk 0:02:43]}  Bc6 {[%clk 0:00:53]} 12. Ba1 {[%clk 0:02:41]}  a4 {[%clk 0:00:49]} 13. Nb5 {[%clk 0:02:40]}  Nbd7 {[%clk 0:00:25]} 14. d4 {[%clk 0:02:32]}  Bxb5 {[%clk 0:00:18]} 15. Rxb5 {[%clk 0:02:29]}  Rb8 {[%clk 0:00:07]} 16. Qxa4 {[%clk 0:02:25]}  Ne4 {[%clk 0:00:05]} 17. Rfb1 {[%clk 0:02:18]}  Ra8 {[%clk 0:00:04]} 18. Qb3 {[%clk 0:02:15]}  cxd4 {[%clk 0:00:04]} 19. Qc2 {[%clk 0:02:00]}  Nec5 {[%clk 0:00:04]} 20. Nxd4 {[%clk 0:01:59]}  Rxa3 {[%clk 0:00:03]} 21. Nc6 {[%clk 0:01:55]}  Qe8 {[%clk 0:00:04]} 22. Bxg7 {[%clk 0:01:50]}  Kxg7 {[%clk 0:00:02]} 23. Qb2+ {[%clk 0:01:50]} 1-0


[Site "https://www.chess.com"]

[Event "Titled Tuesday Blitz March 29 Late 2022"]
[White "Lin, Dachey"]
[Black "Riazantsev, Alexander"]
[WhiteFideId "2029650"]
[BlackFideId "4125029"]
[WhiteElo "2313"]
[BlackElo "2595"]
[Result "1/2-1/2"]
[Round "07"]
[TimeControl "180+1"]
[Date "2022.03.29"]
[WhiteClock "0:00:07"]
[BlackClock "0:00:04"]

1. Nc3 {[%clk 0:03:00]}  d5 {[%clk 0:02:59]} 2. e4 {[%clk 0:03:01]}  c6 {[%clk 0:02:59]} 3. Nf3 {[%clk 0:03:01]}  Bg4 {[%clk 0:02:59]} 4. h3 {[%clk 0:03:02]}  Bxf3 {[%clk 0:02:59]} 5. Qxf3 {[%clk 0:03:03]}  e6 {[%clk 0:02:59]} 6. d3 {[%clk 0:03:03]}  Nd7 {[%clk 0:02:57]} 7. Bd2 {[%clk 0:03:03]}  Ngf6 {[%clk 0:02:52]} 8. g4 {[%clk 0:03:03]}  d4 {[%clk 0:02:48]} 9. Ne2 {[%clk 0:03:03]}  Ne5 {[%clk 0:02:43]} 10. Qg3 {[%clk 0:03:03]}  Ng6 {[%clk 0:02:34]} 11. f4 {[%clk 0:03:01]}  Qb6 {[%clk 0:02:34]} 12. O-O-O {[%clk 0:03:01]}  Nd7 {[%clk 0:02:26]} 13. h4 {[%clk 0:02:46]}  c5 {[%clk 0:02:27]} 14. Bh3 {[%clk 0:02:21]}  Rc8 {[%clk 0:02:21]} 15. Kb1 {[%clk 0:02:16]}  Ne7 {[%clk 0:02:19]} 16. g5 {[%clk 0:02:13]}  Nc6 {[%clk 0:02:14]} 17. e5 {[%clk 0:02:10]}  g6 {[%clk 0:01:57]} 18. h5 {[%clk 0:02:09]}  Rg8 {[%clk 0:01:56]} 19. hxg6 {[%clk 0:02:08]}  hxg6 {[%clk 0:01:57]} 20. Qf3 {[%clk 0:01:51]}  Ne7 {[%clk 0:01:41]} 21. Ng3 {[%clk 0:01:43]}  Nd5 {[%clk 0:01:42]} 22. Ne4 {[%clk 0:01:43]}  c4 {[%clk 0:01:40]} 23. dxc4 {[%clk 0:01:42]}  Rxc4 {[%clk 0:01:41]} 24. Qb3 {[%clk 0:01:37]}  Rc8 {[%clk 0:01:10]} 25. Bc1 {[%clk 0:01:32]}  Bc5 {[%clk 0:01:06]} 26. Bg2 {[%clk 0:01:25]}  Qa6 {[%clk 0:01:01]} 27. Rh7 {[%clk 0:00:59]}  Rf8 {[%clk 0:01:01]} 28. Re1 {[%clk 0:00:56]}  Be7 {[%clk 0:00:58]} 29. Nd6+ {[%clk 0:00:55]}  Bxd6 {[%clk 0:00:57]} 30. exd6 {[%clk 0:00:55]}  Qa5 {[%clk 0:00:41]} 31. Re2 {[%clk 0:00:21]}  N7b6 {[%clk 0:00:41]} 32. Qh3 {[%clk 0:00:20]}  d3 {[%clk 0:00:29]} 33. Qxd3 {[%clk 0:00:19]}  Qc5 {[%clk 0:00:26]} 34. a3 {[%clk 0:00:18]}  Qxd6 {[%clk 0:00:25]} 35. Rh1 {[%clk 0:00:17]}  Rg8 {[%clk 0:00:17]} 36. Rd1 {[%clk 0:00:16]}  Kf8 {[%clk 0:00:17]} 37. Red2 {[%clk 0:00:15]}  Qc7 {[%clk 0:00:16]} 38. Rh1 {[%clk 0:00:13]}  Nxf4 {[%clk 0:00:15]} 39. Qf3 {[%clk 0:00:14]}  Nxg2 {[%clk 0:00:15]} 40. Rxg2 {[%clk 0:00:14]}  Nd5 {[%clk 0:00:14]} 41. Qe4 {[%clk 0:00:12]}  Qe7 {[%clk 0:00:13]} 42. Ka1 {[%clk 0:00:11]}  Qd6 {[%clk 0:00:11]} 43. Rf2 {[%clk 0:00:11]}  Ke7 {[%clk 0:00:11]} 44. Rhf1 {[%clk 0:00:12]}  Rg7 {[%clk 0:00:11]} 45. b3 {[%clk 0:00:11]}  Rh7 {[%clk 0:00:11]} 46. Bb2 {[%clk 0:00:11]}  Kf8 {[%clk 0:00:11]} 47. Qd4 {[%clk 0:00:11]}  Qc5 {[%clk 0:00:10]} 48. Qe5 {[%clk 0:00:10]}  Kg8 {[%clk 0:00:08]} 49. Rxf7 {[%clk 0:00:08]}  Rc7 {[%clk 0:00:06]} 50. Qxe6 {[%clk 0:00:05]}  Rcxf7 {[%clk 0:00:05]} 51. Qxg6+ {[%clk 0:00:05]}  Rhg7 {[%clk 0:00:05]} 52. Bxg7 {[%clk 0:00:05]}  Rxf1+ {[%clk 0:00:05]} 53. Ka2 {[%clk 0:00:04]}  Qc6 {[%clk 0:00:04]} 54. Bf6+ {[%clk 0:00:05]}  Kf8 {[%clk 0:00:05]} 55. Qg7+ {[%clk 0:00:05]}  Ke8 {[%clk 0:00:05]} 56. Qg8+ {[%clk 0:00:05]}  Kd7 {[%clk 0:00:04]} 57. Qf7+ {[%clk 0:00:06]}  Kc8 {[%clk 0:00:04]} 58. Qg8+ {[%clk 0:00:05]}  Kd7 {[%clk 0:00:03]} 59. Qf7+ {[%clk 0:00:06]}  Kc8 {[%clk 0:00:03]} 60. Qg8+ {[%clk 0:00:07]}  Kd7 {[%clk 0:00:04]} 1/2-1/2


[Site "https://www.chess.com"]

[Event "Titled Tuesday Blitz March 29 Late 2022"]
[White "Manolache, Marius"]
[Black "Martinez Reyes, Pedro Ramon"]
[WhiteFideId "1201530"]
[BlackFideId "3901807"]
[WhiteElo "2389"]
[BlackElo "2410"]
[Result "0-1"]
[Round "07"]
[TimeControl "180+1"]
[Date "2022.03.29"]
[WhiteClock "0:00:17"]
[BlackClock "0:00:12"]

1. d4 {[%clk 0:03:00]}  d6 {[%clk 0:02:59]} 2. Nf3 {[%clk 0:02:59]}  Nf6 {[%clk 0:02:58]} 3. Nc3 {[%clk 0:02:59]}  g6 {[%clk 0:02:56]} 4. e4 {[%clk 0:02:59]}  Bg7 {[%clk 0:02:56]} 5. Be3 {[%clk 0:02:58]}  a6 {[%clk 0:02:55]} 6. a4 {[%clk 0:02:55]}  O-O {[%clk 0:02:49]} 7. Qd2 {[%clk 0:02:54]}  Bg4 {[%clk 0:02:45]} 8. Ng5 {[%clk 0:02:42]}  Nc6 {[%clk 0:02:38]} 9. d5 {[%clk 0:02:35]}  Nb4 {[%clk 0:02:24]} 10. f3 {[%clk 0:02:16]}  Bd7 {[%clk 0:02:22]} 11. g4 {[%clk 0:02:11]}  c6 {[%clk 0:02:18]} 12. dxc6 {[%clk 0:02:10]}  bxc6 {[%clk 0:02:06]} 13. a5 {[%clk 0:02:05]}  c5 {[%clk 0:01:36]} 14. Be2 {[%clk 0:01:51]}  Qc7 {[%clk 0:01:19]} 15. O-O {[%clk 0:01:42]}  h5 {[%clk 0:01:12]} 16. Na4 {[%clk 0:01:00]}  Bxa4 {[%clk 0:00:45]} 17. Rxa4 {[%clk 0:00:58]}  hxg4 {[%clk 0:00:45]} 18. fxg4 {[%clk 0:00:57]}  Qc6 {[%clk 0:00:45]} 19. Raa1 {[%clk 0:00:45]}  Nxe4 {[%clk 0:00:41]} 20. Nxe4 {[%clk 0:00:45]}  Qxe4 {[%clk 0:00:40]} 21. Bf3 {[%clk 0:00:38]}  Qxc2 {[%clk 0:00:37]} 22. Bxa8 {[%clk 0:00:37]}  Rxa8 {[%clk 0:00:35]} 23. Rab1 {[%clk 0:00:34]}  Bd4 {[%clk 0:00:16]} 24. Kh1 {[%clk 0:00:27]}  Qe4+ {[%clk 0:00:16]} 25. Qg2 {[%clk 0:00:23]}  Qxg2+ {[%clk 0:00:14]} 26. Kxg2 {[%clk 0:00:23]}  Bxe3 {[%clk 0:00:14]} 27. Rbe1 {[%clk 0:00:22]}  Nd5 {[%clk 0:00:09]} 28. Re2 {[%clk 0:00:20]}  Rb8 {[%clk 0:00:08]} 29. Kf3 {[%clk 0:00:19]}  Rb3 {[%clk 0:00:07]} 30. Ke4 {[%clk 0:00:19]}  e6 {[%clk 0:00:08]} 31. g5 {[%clk 0:00:19]}  Rb4+ {[%clk 0:00:08]} 32. Kf3 {[%clk 0:00:19]}  Bxg5 {[%clk 0:00:08]} 33. Rc2 {[%clk 0:00:15]}  Rf4+ {[%clk 0:00:08]} 34. Ke2 {[%clk 0:00:15]}  Rxf1 {[%clk 0:00:08]} 35. Kxf1 {[%clk 0:00:16]}  Ne3+ {[%clk 0:00:09]} 36. Ke2 {[%clk 0:00:16]}  Nxc2 {[%clk 0:00:10]} 37. Kd3 {[%clk 0:00:17]}  Nb4+ {[%clk 0:00:11]} 38. Kc4 {[%clk 0:00:17]}  Bf6 {[%clk 0:00:11]} 39. b3 {[%clk 0:00:18]}  Be5 {[%clk 0:00:12]} 40. h3 {[%clk 0:00:18]}  f5 {[%clk 0:00:12]} 41. h4 {[%clk 0:00:18]}  f4 {[%clk 0:00:12]} 42. h5 {[%clk 0:00:18]}  f3 {[%clk 0:00:13]} 43. h6 {[%clk 0:00:18]}  d5+ {[%clk 0:00:11]} 44. Kxc5 {[%clk 0:00:17]}  f2 {[%clk 0:00:12]} 45. Kxb4 {[%clk 0:00:16]}  f1=Q {[%clk 0:00:12]} 46. Kc5 {[%clk 0:00:17]}  Qb5# {[%clk 0:00:12]} 0-1


[Site "https://www.chess.com"]

[Event "Titled Tuesday Blitz March 29 Late 2022"]
[White "Martin Duque, Jesus"]
[Black "Li, Ben"]
[WhiteFideId "2208954"]
[BlackFideId "2089980"]
[WhiteElo "2243"]
[BlackElo "2267"]
[Result "1-0"]
[Round "07"]
[TimeControl "180+1"]
[Date "2022.03.29"]
[WhiteClock "0:00:25"]
[BlackClock "0:00:07"]

1. Nf3 {[%clk 0:03:00]}  d5 {[%clk 0:02:57]} 2. b3 {[%clk 0:03:00]}  c5 {[%clk 0:02:50]} 3. e3 {[%clk 0:03:00]}  Nc6 {[%clk 0:02:50]} 4. Bb5 {[%clk 0:03:00]}  Bd7 {[%clk 0:02:51]} 5. c4 {[%clk 0:02:59]}  e6 {[%clk 0:02:49]} 6. cxd5 {[%clk 0:03:00]}  exd5 {[%clk 0:02:50]} 7. O-O {[%clk 0:03:00]}  Nf6 {[%clk 0:02:50]} 8. d4 {[%clk 0:03:00]}  a6 {[%clk 0:02:49]} 9. Be2 {[%clk 0:02:59]}  Bg4 {[%clk 0:02:41]} 10. Bb2 {[%clk 0:02:58]}  Bxf3 {[%clk 0:02:41]} 11. Bxf3 {[%clk 0:02:58]}  cxd4 {[%clk 0:02:42]} 12. Bxd4 {[%clk 0:02:58]}  Bb4 {[%clk 0:02:30]} 13. a3 {[%clk 0:02:51]}  Bd6 {[%clk 0:02:26]} 14. Nc3 {[%clk 0:02:48]}  Be5 {[%clk 0:02:13]} 15. Bxe5 {[%clk 0:02:43]}  Nxe5 {[%clk 0:02:14]} 16. Bxd5 {[%clk 0:02:22]}  Rc8 {[%clk 0:02:10]} 17. Qd4 {[%clk 0:02:19]}  Qe7 {[%clk 0:01:50]} 18. Bxb7 {[%clk 0:02:06]}  Rd8 {[%clk 0:01:43]} 19. Qa4+ {[%clk 0:02:05]}  Nfd7 {[%clk 0:01:44]} 20. Nd5 {[%clk 0:01:54]}  Qd6 {[%clk 0:01:41]} 21. Qxa6 {[%clk 0:01:50]}  Qb8 {[%clk 0:01:28]} 22. Rfd1 {[%clk 0:01:43]}  O-O {[%clk 0:01:28]} 23. Ne7+ {[%clk 0:01:37]}  Kh8 {[%clk 0:01:28]} 24. Nc6 {[%clk 0:01:36]}  Nxc6 {[%clk 0:01:27]} 25. Bxc6 {[%clk 0:01:26]}  Nf6 {[%clk 0:01:17]} 26. b4 {[%clk 0:01:23]}  h5 {[%clk 0:01:17]} 27. Bf3 {[%clk 0:01:19]}  h4 {[%clk 0:00:53]} 28. h3 {[%clk 0:01:19]}  Rfe8 {[%clk 0:00:41]} 29. Qc4 {[%clk 0:01:17]}  Rxd1+ {[%clk 0:00:34]} 30. Rxd1 {[%clk 0:01:18]}  Qa7 {[%clk 0:00:32]} 31. Qxh4+ {[%clk 0:01:16]}  Kg8 {[%clk 0:00:33]} 32. Rd3 {[%clk 0:01:07]}  Qa4 {[%clk 0:00:32]} 33. Qc4 {[%clk 0:01:02]}  g6 {[%clk 0:00:22]} 34. g3 {[%clk 0:01:01]}  Re6 {[%clk 0:00:21]} 35. Kg2 {[%clk 0:01:00]}  Kg7 {[%clk 0:00:18]} 36. h4 {[%clk 0:01:00]}  Nd7 {[%clk 0:00:17]} 37. Qb3 {[%clk 0:00:56]}  Qa7 {[%clk 0:00:16]} 38. Qc3+ {[%clk 0:00:54]}  Ne5 {[%clk 0:00:15]} 39. Rd5 {[%clk 0:00:50]}  f6 {[%clk 0:00:15]} 40. Ra5 {[%clk 0:00:50]}  Qe7 {[%clk 0:00:13]} 41. Bd5 {[%clk 0:00:47]}  Rd6 {[%clk 0:00:13]} 42. e4 {[%clk 0:00:47]}  Nd7 {[%clk 0:00:11]} 43. Qd4 {[%clk 0:00:41]}  Nb6 {[%clk 0:00:11]} 44. Rb5 {[%clk 0:00:37]}  Nxd5 {[%clk 0:00:10]} 45. Rxd5 {[%clk 0:00:37]}  Rxd5 {[%clk 0:00:09]} 46. exd5 {[%clk 0:00:37]}  Qb7 {[%clk 0:00:10]} 47. f3 {[%clk 0:00:37]}  Kf7 {[%clk 0:00:10]} 48. d6 {[%clk 0:00:36]}  Qd7 {[%clk 0:00:11]} 49. Qd5+ {[%clk 0:00:36]}  Kf8 {[%clk 0:00:11]} 50. b5 {[%clk 0:00:36]}  g5 {[%clk 0:00:10]} 51. hxg5 {[%clk 0:00:36]}  fxg5 {[%clk 0:00:11]} 52. b6 {[%clk 0:00:36]}  g4 {[%clk 0:00:12]} 53. fxg4 {[%clk 0:00:36]}  Qa4 {[%clk 0:00:12]} 54. Qf3+ {[%clk 0:00:35]}  Kg7 {[%clk 0:00:12]} 55. Qc3+ {[%clk 0:00:34]}  Kf7 {[%clk 0:00:11]} 56. Qc7+ {[%clk 0:00:32]}  Ke6 {[%clk 0:00:11]} 57. Qe7+ {[%clk 0:00:31]}  Kd5 {[%clk 0:00:12]} 58. d7 {[%clk 0:00:31]}  Qc2+ {[%clk 0:00:12]} 59. Kf3 {[%clk 0:00:31]}  Qd1+ {[%clk 0:00:11]} 60. Kf4 {[%clk 0:00:31]}  Qf1+ {[%clk 0:00:10]} 61. Kg5 {[%clk 0:00:31]}  Kc6 {[%clk 0:00:10]} 62. d8=Q {[%clk 0:00:26]}  Kb5 {[%clk 0:00:08]} 63. Qd5+ {[%clk 0:00:25]}  Ka4 {[%clk 0:00:07]} 64. Qa7+ {[%clk 0:00:25]}  Qa6 {[%clk 0:00:07]} 65. Qxa6# {[%clk 0:00:25]} 1-0


[Site "https://www.chess.com"]

[Event "Titled Tuesday Blitz March 29 Late 2022"]
[White "Melaugh, Shane"]
[Black "Rangel, Daniel"]
[WhiteFideId "2509580"]
[BlackFideId "2124475"]
[WhiteElo "2014"]
[BlackElo "2225"]
[Result "1-0"]
[Round "07"]
[TimeControl "180+1"]
[Date "2022.03.30"]
[WhiteClock "0:00:22"]
[BlackClock "0:00:06"]

1. e4 {[%clk 0:03:00]}  c5 {[%clk 0:02:59]} 2. c4 {[%clk 0:03:00]}  d6 {[%clk 0:03:00]} 3. Nf3 {[%clk 0:03:00]}  Nf6 {[%clk 0:03:00]} 4. Nc3 {[%clk 0:02:59]}  a6 {[%clk 0:03:00]} 5. d4 {[%clk 0:02:59]}  cxd4 {[%clk 0:02:57]} 6. Nxd4 {[%clk 0:03:00]}  e6 {[%clk 0:02:58]} 7. Be2 {[%clk 0:02:59]}  Be7 {[%clk 0:02:52]} 8. Be3 {[%clk 0:02:59]}  O-O {[%clk 0:02:41]} 9. O-O {[%clk 0:02:55]}  Nbd7 {[%clk 0:02:42]} 10. b4 {[%clk 0:02:37]}  Qc7 {[%clk 0:02:39]} 11. Rc1 {[%clk 0:02:34]}  b6 {[%clk 0:02:35]} 12. Nb3 {[%clk 0:02:10]}  Bb7 {[%clk 0:02:34]} 13. f3 {[%clk 0:02:10]}  Rac8 {[%clk 0:02:29]} 14. Na4 {[%clk 0:02:08]}  Rfe8 {[%clk 0:02:18]} 15. c5 {[%clk 0:02:07]}  dxc5 {[%clk 0:02:10]} 16. bxc5 {[%clk 0:02:05]}  bxc5 {[%clk 0:02:00]} 17. Nbxc5 {[%clk 0:01:54]}  Nxc5 {[%clk 0:01:50]} 18. Nxc5 {[%clk 0:01:53]}  Qb6 {[%clk 0:01:29]} 19. Qb3 {[%clk 0:01:33]}  Qxb3 {[%clk 0:01:00]} 20. Nxb3 {[%clk 0:01:34]}  Ba3 {[%clk 0:00:58]} 21. Rxc8 {[%clk 0:01:21]}  Rxc8 {[%clk 0:00:59]} 22. Rd1 {[%clk 0:01:13]}  h6 {[%clk 0:00:51]} 23. Kf2 {[%clk 0:01:02]}  Bb4 {[%clk 0:00:46]} 24. Rc1 {[%clk 0:01:01]}  a5 {[%clk 0:00:43]} 25. Rxc8+ {[%clk 0:00:59]}  Bxc8 {[%clk 0:00:44]} 26. Bb5 {[%clk 0:01:00]}  Bd7 {[%clk 0:00:44]} 27. Bxd7 {[%clk 0:00:41]}  Nxd7 {[%clk 0:00:45]} 28. a4 {[%clk 0:00:41]}  Kf8 {[%clk 0:00:40]} 29. Ke2 {[%clk 0:00:42]}  Ke7 {[%clk 0:00:38]} 30. Kd3 {[%clk 0:00:42]}  Kd6 {[%clk 0:00:37]} 31. Kc4 {[%clk 0:00:39]}  Kc6 {[%clk 0:00:35]} 32. Nd4+ {[%clk 0:00:39]}  Kb7 {[%clk 0:00:33]} 33. Kb5 {[%clk 0:00:39]}  Nb8 {[%clk 0:00:30]} 34. Bf4 {[%clk 0:00:28]}  Na6 {[%clk 0:00:25]} 35. Nc6 {[%clk 0:00:27]}  Be1 {[%clk 0:00:07]} 36. Nd8+ {[%clk 0:00:24]}  Kc8 {[%clk 0:00:06]} 37. Nxf7 {[%clk 0:00:25]}  Nc7+ {[%clk 0:00:04]} 38. Bxc7 {[%clk 0:00:24]}  Kxc7 {[%clk 0:00:05]} 39. Ne5 {[%clk 0:00:25]}  Kd6 {[%clk 0:00:05]} 40. Nc6 {[%clk 0:00:24]}  g5 {[%clk 0:00:05]} 41. Nxa5 {[%clk 0:00:24]}  h5 {[%clk 0:00:04]} 42. Nc4+ {[%clk 0:00:24]}  Ke7 {[%clk 0:00:04]} 43. a5 {[%clk 0:00:24]}  Kd7 {[%clk 0:00:04]} 44. a6 {[%clk 0:00:24]}  Kc8 {[%clk 0:00:05]} 45. Kc6 {[%clk 0:00:21]}  Kb8 {[%clk 0:00:06]} 46. Kd6 {[%clk 0:00:22]}  Ka7 {[%clk 0:00:06]} 47. Kxe6 {[%clk 0:00:22]} 1-0


[Site "https://www.chess.com"]

[Event "Titled Tuesday Blitz March 29 Late 2022"]
[White "Melikhov, Evgeny V."]
[Black "De La Colina, Nicolas"]
[WhiteFideId "4122046"]
[BlackFideId "30946921"]
[WhiteElo "1945"]
[BlackElo "2046"]
[Result "0-1"]
[Round "07"]
[TimeControl "180+1"]
[Date "2022.03.30"]
[WhiteClock "0:01:32"]
[BlackClock "0:01:28"]

1. d4 {[%clk 0:02:57]}  Nf6 {[%clk 0:02:59]} 2. c4 {[%clk 0:02:57]}  g6 {[%clk 0:02:59]} 3. Nc3 {[%clk 0:02:57]}  Bg7 {[%clk 0:03:00]} 4. e4 {[%clk 0:02:57]}  d6 {[%clk 0:03:01]} 5. f3 {[%clk 0:02:57]}  O-O {[%clk 0:03:01]} 6. Be3 {[%clk 0:02:57]}  Nc6 {[%clk 0:03:01]} 7. Nge2 {[%clk 0:02:56]}  a6 {[%clk 0:03:00]} 8. Qd2 {[%clk 0:02:56]}  Na5 {[%clk 0:03:01]} 9. Ng3 {[%clk 0:02:55]}  b5 {[%clk 0:03:01]} 10. h4 {[%clk 0:02:54]}  h5 {[%clk 0:02:55]} 11. Bh6 {[%clk 0:02:50]}  Nxc4 {[%clk 0:02:44]} 12. Bxc4 {[%clk 0:02:49]}  bxc4 {[%clk 0:02:45]} 13. Bxg7 {[%clk 0:02:48]}  Kxg7 {[%clk 0:02:46]} 14. O-O-O {[%clk 0:02:47]}  Rb8 {[%clk 0:02:40]} 15. Nf1 {[%clk 0:02:46]}  c6 {[%clk 0:02:30]} 16. Ne3 {[%clk 0:02:41]}  Be6 {[%clk 0:02:29]} 17. g4 {[%clk 0:02:31]}  Qa5 {[%clk 0:02:26]} 18. g5 {[%clk 0:02:16]}  Nd7 {[%clk 0:01:41]} 19. d5 {[%clk 0:02:15]}  Nc5 {[%clk 0:01:41]} 20. Nxc4 {[%clk 0:02:03]}  Qb4 {[%clk 0:01:40]} 21. dxe6 {[%clk 0:02:01]}  Qxc4 {[%clk 0:01:38]} 22. Qd4+ {[%clk 0:02:01]}  Qxd4 {[%clk 0:01:37]} 23. Rxd4 {[%clk 0:02:00]}  fxe6 {[%clk 0:01:35]} 24. Rh3 {[%clk 0:01:48]}  e5 {[%clk 0:01:31]} 25. Rd1 {[%clk 0:01:44]}  Rf7 {[%clk 0:01:30]} 26. Kc2 {[%clk 0:01:38]}  Rbf8 {[%clk 0:01:28]} 27. Rf1 {[%clk 0:01:37]}  Ne6 {[%clk 0:01:29]} 28. Kd3 {[%clk 0:01:32]}  Nf4+ {[%clk 0:01:28]} 0-1


[Site "https://www.chess.com"]

[Event "Titled Tuesday Blitz March 29 Late 2022"]
[White "Mikhailov, Viacheslav"]
[Black "Aggelis, Nikolaos"]
[WhiteFideId "4187369"]
[BlackFideId "4213220"]
[WhiteElo "2381"]
[BlackElo "2154"]
[Result "1-0"]
[Round "07"]
[TimeControl "180+1"]
[Date "2022.03.29"]
[WhiteClock "0:02:26"]
[BlackClock "0:01:54"]

1. Nf3 {[%clk 0:02:47]}  d5 {[%clk 0:02:55]} 2. g3 {[%clk 0:02:47]}  Nf6 {[%clk 0:02:55]} 3. Bg2 {[%clk 0:02:47]}  g6 {[%clk 0:02:55]} 4. O-O {[%clk 0:02:48]}  Bg7 {[%clk 0:02:56]} 5. c4 {[%clk 0:02:49]}  dxc4 {[%clk 0:02:52]} 6. Na3 {[%clk 0:02:48]}  c3 {[%clk 0:02:52]} 7. dxc3 {[%clk 0:02:48]}  Qxd1 {[%clk 0:02:51]} 8. Rxd1 {[%clk 0:02:49]}  Nfd7 {[%clk 0:02:50]} 9. Nb5 {[%clk 0:02:46]}  Na6 {[%clk 0:02:46]} 10. Bf4 {[%clk 0:02:46]}  c6 {[%clk 0:02:46]} 11. Nc7+ {[%clk 0:02:43]}  Nxc7 {[%clk 0:02:43]} 12. Bxc7 {[%clk 0:02:43]}  f6 {[%clk 0:02:24]} 13. Nd4 {[%clk 0:02:42]}  e5 {[%clk 0:02:19]} 14. Nxc6 {[%clk 0:02:27]}  O-O {[%clk 0:01:54]} 15. Ne7+ {[%clk 0:02:26]}  Kh8 {[%clk 0:01:54]} 16. Nxc8 {[%clk 0:02:26]} 1-0


[Site "https://www.chess.com"]